bitfinex/quotes_BTCUSD_20250403
["timestamp","ask_amount","ask_price","bid_price","bid_amount"]
[1743687509358,0.242603,82426.0,82425.0,0.0204]
[1743687509550,0.242646,82425.0,82424.0,0.0204]
[1743687509766,0.332646,82425.0,82418.0,0.2436498]
[1743687509978,0.242653,82424.0,82418.0,0.0009878]
[1743687510120,0.242653,82424.0,82422.0,0.012132]
[1743687510121,0.09,82424.0,82422.0,0.012132]
[1743687510328,0.09,82424.0,82423.0,0.1288876]
[1743687511072,0.00062986,82435.0,82423.0,0.1288876]
[1743687511073,0.00062986,82435.0,82434.0,0.60928885]
[1743687511274,0.004,82439.0,82434.0,0.60928885]
[1743687511275,8.6e-07,82439.0,82438.0,0.594736]
[1743687511475,8.6e-07,82439.0,82438.0,0.72603245]
[1743687511616,0.0001393,82439.0,82438.0,0.72603245]
[1743687511817,3e-07,82439.0,82438.0,0.73103245]
[1743687512022,0.004,82469.0,82450.0,0.594699]
[1743687512224,0.004,82469.0,82450.0,0.72599545]
[1743687512584,0.0003362,82480.0,82479.0,0.26914985]
[1743687512885,0.0003362,82480.0,82479.0,0.56534545]
[1743687512886,0.00047459,82480.0,82479.0,0.56534545]
[1743687513057,0.0003364,82491.0,82479.0,0.56534545]
[1743687513058,9.9e-07,82491.0,82490.0,0.594575]
[1743687513265,9.9e-07,82491.0,82490.0,0.7113306]
[1743687513619,9.9e-07,82491.0,82490.0,0.90515145]
[1743687514233,4e-07,82499.0,82498.0,0.357121]
[1743687514429,4e-07,82499.0,82498.0,0.48341745]
[1743687514859,4e-07,82499.0,82498.0,0.48440935]
[1743687515123,4e-07,82499.0,82498.0,0.1177475]
[1743687515320,4e-07,82499.0,82498.0,0.2968675]
[1743687515518,0.242392,82511.0,82498.0,0.2968675]
[1743687515519,0.242403,82508.0,82499.0,0.012121]
[1743687515739,0.242412,82505.0,82499.0,0.1167556]
[1743687515949,0.02,82505.0,82503.0,0.242415]
[1743687516127,0.02,82505.0,82504.0,0.13129949]
[1743687516267,0.02,82505.0,82504.0,0.14584028]
[1743687516468,0.00013834,82507.0,82506.0,0.02666085]
[1743687516719,0.00013834,82507.0,82506.0,0.48583971]
[1743687516928,0.00013834,82507.0,82506.0,0.48341645]
[1743687517757,0.00013834,82507.0,82506.0,0.13129645]
[1743687518088,0.01013834,82507.0,82506.0,0.2961556]
[1743687518299,0.00013834,82507.0,82506.0,0.5507216]
[1743687518815,0.00013834,82507.0,82506.0,0.95526245]
[1743687519466,0.00013834,82507.0,82506.0,0.3461556]
[1743687519669,0.00013834,82507.0,82506.0,0.6006816]
[1743687519873,0.01013834,82507.0,82506.0,0.0510343]
[1743687520591,0.01013834,82507.0,82506.0,0.1799099]
[1743687520789,0.01013834,82507.0,82506.0,0.0510343]
[1743687521013,0.02225834,82507.0,82506.0,0.0510343]
[1743687521150,0.01013834,82507.0,82506.0,0.05004]
[1743687521555,0.01013834,82507.0,82506.0,0.06216]
[1743687521736,0.01013834,82507.0,82506.0,0.05004]
[1743687521942,0.01013834,82507.0,82506.0,0.4213216]
[1743687523675,0.01030614,82507.0,82506.0,0.1789156]
[1743687524402,0.02242614,82507.0,82506.0,0.05004]
[1743687524588,0.25270914,82507.0,82506.0,0.05004]
[1743687525221,0.38158474,82507.0,82506.0,0.05004]
[1743687525780,0.01030614,82507.0,82506.0,0.05004]
[1743687525987,0.01242614,82507.0,82506.0,0.05004]
[1743687526413,0.00030614,82507.0,82506.0,0.05004]
[1743687526617,0.01242614,82507.0,82506.0,0.05004]
[1743687526817,0.00030614,82507.0,82506.0,0.05004]
[1743687527016,0.12918174,82507.0,82506.0,0.05004]
[1743687527643,0.12918174,82507.0,82498.0,4e-05]
[1743687527644,0.254548,82499.0,82498.0,4e-05]
[1743687527856,0.6513036,82499.0,82498.0,4e-05]
[1743687528181,0.6391826,82499.0,82498.0,4e-05]
[1743687528375,0.6513036,82499.0,82498.0,4e-05]
[1743687528535,0.6391826,82499.0,82498.0,4e-05]
[1743687528885,0.28,82499.0,82498.0,4e-05]
[1743687529189,0.28,82499.0,82498.0,0.3713466]
[1743687529670,0.28,82499.0,82498.0,4e-05]
[1743687530192,0.522427,82499.0,82498.0,4e-05]
[1743687530401,0.6513036,82499.0,82498.0,4e-05]
[1743687530580,0.6991036,82499.0,82498.0,4e-05]
[1743687531558,1.0391036,82499.0,82498.0,4e-05]
[1743687531757,0.242559,82454.0,82453.0,0.1782]
[1743687531955,0.01,82454.0,82447.0,0.012129]
[1743687532155,0.01,82454.0,82453.0,0.012128]
[1743687532593,0.01,82454.0,82453.0,0.1288836]
[1743687532788,0.012122,82490.0,82473.0,0.012125]
[1743687532945,0.242493,82477.0,82468.0,0.012125]
[1743687533148,0.242498,82475.0,82470.0,0.254637]
[1743687533345,0.242501,82474.0,82470.0,0.242512]
[1743687533572,0.242508,82472.0,82465.0,0.012126]
[1743687533770,0.04,82472.0,82468.0,0.012125]
[1743687533974,0.04,82472.0,82471.0,0.012125]
[1743687534194,0.242416,82503.0,82497.0,0.012121]
[1743687534399,0.08,82503.0,82489.0,0.012122]
[1743687534713,0.08,82503.0,82488.0,0.012122]
[1743687534714,0.08,82503.0,82502.0,0.01212]
[1743687534930,0.08,82503.0,82502.0,0.0009834]
[1743687535263,0.09212,82503.0,82502.0,0.0009834]
[1743687535515,0.08,82503.0,82500.0,0.24242]
[1743687535716,0.08,82503.0,82502.0,0.01212]
[1743687535925,0.0001678,82507.0,82506.0,0.254526]
[1743687536163,0.0001678,82507.0,82506.0,0.5489216]
[1743687536308,0.0001678,82507.0,82506.0,0.5473216]
[1743687537082,0.012116,82535.0,82506.0,0.5473216]
[1743687537083,2e-07,82518.0,82513.0,0.594505]
[1743687537294,2e-07,82518.0,82517.0,0.72578845]
[1743687537526,0.004,82559.0,82517.0,0.72578845]
[1743687537527,5e-07,82536.0,82535.0,0.582321]
[1743687537743,0.004,82559.0,82558.0,0.254365]
[1743687537946,0.014,82559.0,82558.0,0.3711206]
[1743687538820,0.004,82559.0,82558.0,0.7111206]
[1743687539025,0.00446132,82559.0,82558.0,0.72566145]
[1743687539426,0.00446132,82559.0,82558.0,0.7111206]
[1743687539843,0.00446132,82559.0,82558.0,0.3101476]
[1743687540077,0.00446132,82559.0,82558.0,0.311144]
[1743687540281,0.25671132,82559.0,82558.0,0.0009964]
[1743687540485,0.25671132,82559.0,82513.0,0.7303]
[1743687540486,0.242277,82550.0,82545.0,0.012114]
[1743687540688,0.02,82550.0,82543.0,0.423335]
[1743687540905,0.02,82550.0,82549.0,0.254394]
[1743687541114,0.242289,82546.0,82543.0,0.18104]
[1743687541325,0.262289,82546.0,82543.0,0.18104]
[1743687541497,0.02,82546.0,82540.0,0.242304]
[1743687541681,0.02,82546.0,82531.0,0.254446]
[1743687541682,0.242305,82541.0,82538.0,0.18084]
[1743687541879,0.02,82541.0,82540.0,0.012115]
[1743687542055,0.02,82541.0,82540.0,0.254421]
[1743687542699,0.242318,82536.0,82535.0,0.181]
[1743687542901,0.05,82536.0,82535.0,0.181]
[1743687543229,0.05,82536.0,82535.0,0.5521926]
[1743687543339,0.242235,82565.0,82556.0,0.242258]
[1743687543542,0.07446132,82559.0,82550.0,0.012113]
[1743687543746,0.07446132,82559.0,82558.0,0.254365]
[1743687544351,0.07436075,82559.0,82558.0,0.435165]
[1743687544618,0.07436075,82559.0,82558.0,0.5519206]
[1743687545189,0.07436075,82559.0,82558.0,0.1815062]
[1743687545538,0.20322835,82559.0,82558.0,0.0009862]
[1743687545739,0.07436075,82559.0,82548.0,0.012114]
[1743687545944,0.07436075,82559.0,82557.0,0.242255]
[1743687546142,0.07436075,82559.0,82537.0,0.242313]
[1743687546143,0.012113,82555.0,82537.0,0.242313]
[1743687546365,0.012113,82555.0,82456.0,0.0003354]
[1743687546366,0.012113,82550.0,82538.0,0.18036]
[1743687546585,0.242284,82548.0,82543.0,0.242296]
[1743687546792,0.242284,82548.0,82538.0,0.192475]
[1743687546793,0.282284,82548.0,82542.0,0.012115]
[1743687546999,0.00452845,82559.0,82558.0,0.012112]
[1743687547315,0.00452845,82559.0,82558.0,0.254365]
[1743687547513,0.00452845,82559.0,82558.0,0.594365]
[1743687547803,4.5e-07,82563.0,82562.0,0.594354]
[1743687547941,4.5e-07,82563.0,82562.0,0.72565045]
[1743687547942,0.00013875,82563.0,82562.0,0.72565045]
[1743687548355,0.00670162,82573.0,82572.0,0.594322]
[1743687548713,0.00670162,82573.0,82572.0,0.72561845]
[1743687549123,6.2e-07,82573.0,82572.0,0.72561845]
[1743687549883,0.018805,82620.0,82572.0,0.72561845]
[1743687549884,6.2e-07,82582.0,82581.0,0.594295]
[1743687550113,6.2e-07,82582.0,82581.0,0.92858325]
[1743687551082,4.2e-07,82590.0,82589.0,0.34]
[1743687551464,0.00013862,82590.0,82589.0,0.48340445]
[1743687551641,0.00013862,82590.0,82589.0,0.73907167]
[1743687551862,0.00013862,82590.0,82589.0,0.7498818]
[1743687552063,0.00013862,82590.0,82589.0,0.6693358]
[1743687552496,6.2e-07,82590.0,82589.0,0.6693358]
[1743687552690,6.2e-07,82590.0,82589.0,0.5032948]
[1743687553591,6.2e-07,82590.0,82589.0,0.34520445]
[1743687553791,6.2e-07,82590.0,82589.0,0.3306636]
[1743687554409,0.01121438,82627.0,82601.0,0.242127]
[1743687554617,0.01121438,82627.0,82614.0,0.242087]
[1743687554618,0.00013818,82619.0,82614.0,0.242087]
[1743687554819,0.25013818,82619.0,82612.0,0.012104]
[1743687554968,0.25013818,82619.0,82618.0,0.242077]
[1743687555191,0.25013818,82619.0,82618.0,0.25418]
[1743687555594,0.25013818,82619.0,82612.0,0.012104]
[1743687555595,0.25013818,82619.0,82602.0,0.1167556]
[1743687555797,0.242077,82618.0,82609.0,0.242102]
[1743687556001,0.28,82618.0,82610.0,0.012105]
[1743687556198,0.242094,82613.0,82596.0,0.012107]
[1743687556403,0.242097,82612.0,82605.0,0.242114]
[1743687556603,0.242103,82610.0,82602.0,0.242123]
[1743687556807,0.14,82610.0,82603.0,0.012106]
[1743687557013,0.14,82610.0,82609.0,0.242104]
[1743687557374,0.14,82610.0,82609.0,0.254209]
[1743687557805,0.14,82610.0,82609.0,0.242104]
[1743687558016,0.14,82610.0,82609.0,0.3709646]
[1743687558539,0.0001683,82613.0,82612.0,0.254199]
[1743687558739,3e-07,82613.0,82612.0,0.72549545]
[1743687558940,4.8e-07,82619.0,82618.0,0.60872085]
[1743687559148,4.8e-07,82619.0,82618.0,0.72547645]
[1743687559999,9.7e-07,82629.0,82627.0,0.34]
[1743687560247,9.7e-07,82629.0,82628.0,0.7278661]
[1743687560398,9.7e-07,82629.0,82628.0,0.72544645]
[1743687561192,9.7e-07,82629.0,82628.0,0.73044645]
[1743687561645,6.7e-07,82642.0,82628.0,0.74334445]
[1743687561836,6.7e-07,82642.0,82641.0,0.7108656]
[1743687562037,6.7e-07,82642.0,82641.0,0.92704645]
[1743687563149,9.5e-07,82656.0,82655.0,0.02663885]
[1743687563284,9.5e-07,82656.0,82655.0,0.72778236]
[1743687563488,0.00046172,82656.0,82655.0,0.72536345]
[1743687564090,0.00046172,82656.0,82655.0,0.1167556]
[1743687564292,0.01046172,82656.0,82653.0,0.20068]
[1743687564517,0.01046172,82656.0,82644.0,0.242001]
[1743687564518,0.01046172,82656.0,82641.0,0.2008]
[1743687564862,0.02255972,82656.0,82641.0,0.1958]
[1743687565000,0.0479,82655.0,82641.0,0.1958]
[1743687565215,0.12,82655.0,82654.0,0.25407]
[1743687565610,0.12,82655.0,82651.0,0.0130882]
[1743687565611,0.241975,82653.0,82651.0,0.0009892]
[1743687565820,0.241978,82652.0,82651.0,0.0009892]
[1743687566024,0.254076,82652.0,82651.0,0.0009892]
[1743687566234,0.03,82652.0,82643.0,0.254104]
[1743687566446,0.03,82652.0,82645.0,0.012099]
[1743687566804,0.03,82652.0,82645.0,0.254094]
[1743687567007,0.241982,82651.0,82645.0,0.254094]
[1743687567211,0.241985,82650.0,82642.0,0.242005]
[1743687567390,0.242009,82642.0,82635.0,0.012101]
[1743687567591,0.012101,82636.0,82618.0,0.212583]
[1743687567977,0.012101,82636.0,82634.0,0.24203]
[1743687567978,0.03,82636.0,82634.0,0.24203]
[1743687568176,0.03,82636.0,82635.0,0.012101]
[1743687568586,0.03,82636.0,82634.0,0.242029]
[1743687568792,0.03,82636.0,82625.0,0.012102]
[1743687568941,0.03,82636.0,82633.0,0.012101]
[1743687569170,0.03,82636.0,82627.0,0.012102]
[1743687569371,0.03,82636.0,82627.0,0.24205]
[1743687569572,0.03,82636.0,82619.0,0.012103]
[1743687569774,0.03,82636.0,82631.0,0.012101]
[1743687569979,0.03,82636.0,82627.0,0.242049]
[1743687570200,0.242039,82631.0,82622.0,0.012103]
[1743687570483,0.04,82631.0,82629.0,0.012102]
[1743687570671,0.04,82631.0,82630.0,0.012102]
[1743687570874,0.28204,82631.0,82624.0,0.012103]
[1743687571075,0.04,82631.0,82630.0,0.254144]
[1743687571663,0.04,82631.0,82628.0,0.242046]
[1743687571871,0.04,82631.0,82620.0,0.44207]
[1743687571872,0.242042,82630.0,82612.0,0.02274693]
[1743687572023,0.04,82630.0,82614.0,0.012104]
[1743687572224,0.04,82630.0,82624.0,0.012103]
[1743687572672,0.04,82630.0,82623.0,0.012103]
[1743687572673,0.282043,82630.0,82623.0,0.254165]
[1743687572875,0.04,82630.0,82626.0,0.242054]
[1743687573074,0.04,82630.0,82629.0,0.012102]
[1743687573943,0.242045,82629.0,82617.0,0.012104]
[1743687574139,0.242052,82627.0,82621.0,0.242067]
[1743687574358,0.242052,82627.0,82599.0,0.435835]
[1743687574359,0.03,82627.0,82616.0,0.012104]
[1743687574600,0.03,82627.0,82617.0,0.012104]
[1743687574749,0.03,82627.0,82619.0,0.012103]
[1743687574956,0.03,82627.0,82626.0,0.242054]
[1743687575165,0.03,82627.0,82626.0,0.2551512]
[1743687577214,0.03,82627.0,82626.0,0.3719068]
[1743687577793,0.0001681,82636.0,82635.0,0.254129]
[1743687577993,1e-07,82636.0,82635.0,0.92318545]
[1743687578440,1e-07,82652.0,82651.0,0.59408]
[1743687578644,1e-07,82652.0,82651.0,0.72537645]
[1743687579064,0.00046087,82652.0,82651.0,0.72537645]
[1743687579276,0.00046087,82652.0,82651.0,0.7108356]
[1743687579474,0.00046087,82652.0,82651.0,0.3708356]
[1743687579675,0.00046087,82652.0,82646.0,0.241994]
[1743687579875,0.01046087,82652.0,82651.0,0.25408]
[1743687580282,0.01046087,82652.0,82646.0,0.012099]
[1743687580283,0.01046087,82652.0,82644.0,0.0121]
[1743687580435,0.01046087,82652.0,82643.0,0.19708]
[1743687580842,0.242,82645.0,82643.0,0.19708]
[1743687581021,0.03,82645.0,82643.0,0.19708]
[1743687581215,0.03,82645.0,82643.0,0.254104]
[1743687581489,0.03,82645.0,82644.0,0.0121]
[1743687581846,0.242028,82635.0,82622.0,0.338891]
[1743687582014,0.242028,82635.0,82612.0,0.01083857]
[1743687582015,0.02,82635.0,82620.0,0.012103]
[1743687582209,0.242041,82631.0,82625.0,0.242055]
[1743687582453,0.02,82631.0,82620.0,0.012103]
[1743687582770,0.02,82631.0,82630.0,0.012102]
[1743687582906,0.02,82631.0,82630.0,0.0124382]
[1743687583268,0.02,82631.0,82630.0,0.0003362]
[1743687583955,0.02,82631.0,82630.0,0.0124382]
[1743687584120,0.02,82631.0,82630.0,0.2544802]
[1743687585385,0.02,82631.0,82630.0,0.2554611]
[1743687585601,0.262039,82631.0,82630.0,0.0013171]
[1743687585848,0.02,82631.0,82630.0,0.00887934]
[1743687586434,0.262039,82631.0,82630.0,0.00887934]
[1743687586636,0.02,82631.0,82630.0,0.00887934]
[1743687586865,0.02,82631.0,82630.0,0.26302334]
[1743687587070,0.02,82631.0,82630.0,0.2554611]
[1743687587275,0.02,82631.0,82630.0,0.0013171]
[1743687587829,0.02,82631.0,82630.0,0.2555011]
[1743687589360,0.262039,82631.0,82630.0,0.0013571]
[1743687589564,0.4404956,82631.0,82630.0,0.0013571]
[1743687589768,0.4404956,82631.0,82599.0,0.012106]
[1743687589769,0.242092,82613.0,82607.0,0.242109]
[1743687589920,0.13,82613.0,82600.0,0.242127]
[1743687590121,0.13,82613.0,82604.0,0.2424522]
[1743687590326,0.13,82613.0,82605.0,0.254219]
[1743687590549,0.13,82613.0,82611.0,0.242096]
[1743687590749,0.13,82613.0,82612.0,0.012104]
[1743687591517,0.13,82613.0,82608.0,0.012105]
[1743687591738,0.13,82613.0,82608.0,0.00013818]
[1743687591943,0.13,82613.0,82608.0,0.24224218]
[1743687592145,0.13,82613.0,82612.0,0.254199]
[1743687592358,0.18,82638.0,82637.0,0.254123]
[1743687592561,0.0452,82666.0,82651.0,0.25408]
[1743687592762,0.0100001,82652.0,82651.0,0.25408]
[1743687593196,0.0100001,82652.0,82648.0,0.012099]
[1743687593405,0.24199,82648.0,82638.0,0.21414]
[1743687593606,0.241994,82647.0,82640.0,0.242012]
[1743687593808,0.04,82647.0,82642.0,0.242007]
[1743687594212,0.04,82647.0,82644.0,0.242001]
[1743687594399,0.04,82647.0,82646.0,0.254094]
[1743687595388,0.00046087,82652.0,82651.0,0.25408]
[1743687595593,0.02046087,82652.0,82651.0,0.25408]
[1743687596004,0.02046087,82652.0,82648.0,0.012099]
[1743687596005,0.02046087,82652.0,82648.0,0.254087]
[1743687596211,0.02046087,82652.0,82651.0,0.012099]
[1743687596415,0.02062897,82652.0,82651.0,0.012099]
[1743687597219,0.241981,82651.0,82649.0,0.00982969]
[1743687597423,0.012099,82650.0,82649.0,0.00982969]
[1743687597648,0.27,82650.0,82649.0,0.00982969]
[1743687598179,0.3867556,82650.0,82649.0,0.00982969]
[1743687598389,0.6287396,82650.0,82649.0,0.00982969]
[1743687598590,0.6408386,82650.0,82649.0,0.00982969]
[1743687598990,0.241995,82646.0,82642.0,4e-05]
[1743687599168,0.242004,82643.0,82642.0,4e-05]
[1743687599370,0.304104,82643.0,82642.0,4e-05]
[1743687599703,0.292004,82643.0,82642.0,4e-05]
[1743687600153,0.05,82643.0,82642.0,0.254147]
[1743687600355,0.1788556,82643.0,82642.0,4e-05]
[1743687600594,0.254137,82632.0,82629.0,0.01209983]
[1743687600794,0.6408926,82632.0,82629.0,0.01209983]
[1743687600949,0.259144,82630.0,82629.0,0.01209983]
[1743687601144,0.259144,82630.0,82612.0,8.2e-07]
[1743687601145,0.254196,82613.0,82612.0,8.2e-07]
[1743687601350,0.254196,82613.0,82600.0,2e-07]
[1743687601351,0.012106,82601.0,82600.0,2e-07]
[1743687601557,0.6559886,82601.0,82600.0,2e-07]
[1743687601787,0.254261,82592.0,82591.0,0.004]
[1743687601984,0.2,82592.0,82591.0,0.004]
[1743687602149,0.3288626,82592.0,82591.0,0.004]
[1743687602347,0.3741626,82592.0,82591.0,0.004]
[1743687602527,0.3741626,82592.0,82591.0,0.00413818]
[1743687602733,0.3741626,82592.0,82578.0,0.00756712]
[1743687602734,0.594354,82562.0,82531.0,0.004]
[1743687602938,0.254397,82548.0,82531.0,0.004]
[1743687603139,0.6011526,82548.0,82531.0,0.004]
[1743687603344,0.3467556,82548.0,82547.0,0.00079632]
[1743687603671,0.23,82548.0,82547.0,0.25519632]
[1743687604271,0.472283,82548.0,82547.0,0.00079632]
[1743687604469,0.6011526,82548.0,82547.0,0.00079632]
[1743687604701,0.6497526,82548.0,82547.0,0.00079632]
[1743687604870,0.6497526,82548.0,82539.0,0.0003354]
[1743687604871,0.012114,82544.0,82539.0,0.0003354]
[1743687605090,0.15,82544.0,82540.0,0.012115]
[1743687605292,0.14996,82544.0,82543.0,0.012114]
[1743687605494,0.14996,82544.0,82539.0,0.0003354]
[1743687605495,0.242297,82543.0,82539.0,0.0003354]
[1743687605704,0.242306,82541.0,82539.0,0.0003354]
[1743687605936,0.362306,82541.0,82539.0,0.0003354]
[1743687606138,0.37442,82541.0,82539.0,0.0003354]
[1743687606434,0.3711766,82540.0,82539.0,0.0003354]
[1743687606663,0.3711766,82540.0,82531.0,0.004]
[1743687606664,0.254446,82532.0,82531.0,0.004]
[1743687606888,0.6012016,82532.0,82531.0,0.004]
[1743687607281,0.6012016,82532.0,82511.0,0.012119]
[1743687607282,0.254473,82523.0,82508.0,0.000335]
[1743687607500,0.254516,82509.0,82508.0,0.000335]
[1743687607650,0.18,82509.0,82508.0,0.000335]
[1743687608062,0.18,82509.0,82508.0,0.254855]
[1743687608322,0.0472,82541.0,82508.0,0.254855]
[1743687608323,0.242318,82536.0,82528.0,0.012117]
[1743687608496,0.06,82532.0,82528.0,0.254456]
[1743687608691,0.06,82532.0,82508.0,0.000335]
[1743687608692,0.012118,82520.0,82508.0,0.000335]
[1743687608893,0.254516,82509.0,82508.0,0.000335]
[1743687609094,0.4012716,82509.0,82508.0,0.000335]
[1743687609889,0.0478,82508.0,82456.0,0.0003354]
[1743687610085,0.012122,82493.0,82471.0,0.016125]
[1743687610332,0.012122,82490.0,82471.0,0.004]
[1743687610644,0.1167556,82489.0,82471.0,0.004]
[1743687610875,0.03,82489.0,82485.0,0.25459]
[1743687611081,0.03,82489.0,82482.0,0.012123]
[1743687611251,0.012123,82485.0,82472.0,0.012125]
[1743687611456,0.1167556,82484.0,82472.0,0.0122632]
[1743687611672,0.242435,82497.0,82485.0,0.012123]
[1743687611801,0.242435,82497.0,82485.0,0.242468]
[1743687611802,0.24245,82491.0,82485.0,0.242468]
[1743687612021,0.12,82491.0,82489.0,0.012122]
[1743687612205,0.12,82491.0,82490.0,0.254575]
[1743687613374,0.01212,82506.0,82493.0,0.012122]
[1743687613584,0.01212,82506.0,82449.0,0.005]
[1743687613585,0.012123,82486.0,82472.0,0.0122632]
[1743687613784,0.012124,82476.0,82472.0,0.0001382]
[1743687613986,0.242503,82473.0,82472.0,0.0001382]
[1743687614205,0.5313836,82473.0,82472.0,0.0001382]
[1743687614407,0.5798836,82473.0,82472.0,0.0001382]
[1743687614992,0.3252556,82473.0,82472.0,0.0001382]
[1743687615201,0.16,82473.0,82472.0,0.0122632]
[1743687615402,0.2888806,82473.0,82472.0,0.0001381]
[1743687615858,0.2767556,82473.0,82472.0,0.0001381]
[1743687616057,0.16,82473.0,82472.0,0.2547691]
[1743687616580,0.0497,82499.0,82472.0,0.2547691]
[1743687616581,0.012122,82494.0,82480.0,0.012124]
[1743687616787,0.012122,82494.0,82472.0,0.0001381]
[1743687616788,0.254628,82473.0,82472.0,0.0001381]
[1743687616991,0.03,82473.0,82472.0,0.0001381]
[1743687617194,0.042125,82473.0,82472.0,0.0001381]
[1743687617394,0.1467556,82473.0,82472.0,0.0001381]
[1743687618017,0.1467556,82473.0,82472.0,10.0001381]
[1743687618424,0.03,82473.0,82472.0,10.2547691]
[1743687618748,0.03,82473.0,82472.0,10.0001381]
[1743687618749,0.1467556,82473.0,82472.0,10.0001381]
[1743687619091,0.005,82487.0,82472.0,10.0001381]
[1743687619092,0.242419,82502.0,82489.0,0.012122]
[1743687619301,0.242466,82486.0,82474.0,0.242499]
[1743687619509,0.02,82486.0,82482.0,0.242476]
[1743687619714,0.02,82486.0,82485.0,0.012123]
[1743687619912,0.484703,82525.0,82510.0,0.254513]
[1743687619913,0.036364,82511.0,82510.0,0.254513]
[1743687620113,0.106364,82511.0,82507.0,0.01212]
[1743687620314,0.106364,82511.0,82510.0,0.254513]
[1743687620517,0.07,82511.0,82510.0,0.254513]
[1743687620900,0.012116,82530.0,82508.0,0.2004]
[1743687621128,0.24238,82515.0,82511.0,0.242389]
[1743687621277,0.242384,82514.0,82510.0,0.0122572]
[1743687621622,0.242384,82514.0,82510.0,0.0001382]
[1743687621623,0.25451,82511.0,82510.0,0.0001382]
[1743687621777,0.012122,82488.0,82473.0,0.012125]
[1743687621985,0.242484,82480.0,82472.0,10.242505]
[1743687622199,0.242503,82473.0,82472.0,10.0]
[1743687622555,0.01,82473.0,82472.0,10.2551063]
[1743687622698,0.01,82473.0,82472.0,10.3718619]
[1743687622894,0.0101685,82473.0,82472.0,10.3718619]
[1743687623193,0.0101685,82473.0,82472.0,10.0004753]
[1743687623560,0.0101685,82473.0,82472.0,10.0126003]
[1743687623764,0.0101685,82473.0,82472.0,10.1293559]
[1743687623964,0.0001685,82473.0,82472.0,10.14389675]
[1743687624512,0.0001685,82473.0,82472.0,10.0126003]
[1743687624722,5e-07,82473.0,82472.0,10.14389675]
[1743687624870,5e-07,82473.0,82472.0,10.14393675]
[1743687625236,5e-07,82473.0,82472.0,10.48393675]
[1743687625859,5e-07,82473.0,82472.0,10.14393675]
[1743687626067,5e-07,82473.0,82472.0,10.2114403]
[1743687626471,5e-07,82473.0,82472.0,10.0005153]
[1743687626734,0.0100005,82473.0,82472.0,10.0005153]
[1743687626911,0.2525035,82473.0,82472.0,10.0005153]
[1743687627133,0.0100005,82473.0,82472.0,10.0005153]
[1743687627346,0.1388811,82473.0,82472.0,10.0005153]
[1743687627535,0.1757561,82473.0,82472.0,10.0005153]
[1743687627678,0.0100005,82473.0,82472.0,10.0005153]
[1743687627877,0.0100005,82473.0,82472.0,10.2551463]
[1743687628723,0.0100005,82473.0,82472.0,10.0005153]
[1743687628925,0.0100005,82473.0,82472.0,10.0126403]
[1743687629844,0.0100005,82473.0,82472.0,10.1293959]
[1743687630046,5e-07,82473.0,82472.0,10.14393675]
[1743687630217,5e-07,82473.0,82472.0,10.48772484]
[1743687630607,5e-07,82473.0,82472.0,10.5074211]
[1743687631016,5e-07,82473.0,82472.0,10.49288025]
[1743687631465,5e-07,82473.0,82472.0,10.03612465]
[1743687632116,5e-07,82473.0,82472.0,10.15288025]
[1743687632294,5e-07,82473.0,82472.0,10.5074211]
[1743687632837,5e-07,82473.0,82472.0,10.49288025]
[1743687633040,5e-07,82473.0,82472.0,10.68976025]
[1743687633277,5e-07,82473.0,82472.0,10.7043011]
[1743687633649,5e-07,82473.0,82472.0,10.68976025]
[1743687634753,5e-07,82473.0,82472.0,10.68601216]
[1743687634955,5e-07,82473.0,82472.0,10.70055301]
[1743687635181,5e-07,82473.0,82472.0,10.68843223]
[1743687635786,5e-07,82473.0,82472.0,10.44627678]
[1743687636022,0.2525035,82473.0,82472.0,10.00813078]
[1743687636153,0.3813841,82473.0,82472.0,10.00813078]
[1743687636352,0.3692591,82473.0,82472.0,10.00813078]
[1743687636563,0.3813841,82473.0,82472.0,9.426794]
[1743687636798,0.7263841,82473.0,82472.0,7.219608]
[1743687637009,0.7263841,82473.0,82472.0,5.71223252]
[1743687637235,0.7577651,82473.0,82472.0,5.71223252]
[1743687637446,0.7213841,82473.0,82472.0,5.71223252]
[1743687638007,0.81653664,82473.0,82472.0,3.56864252]
[1743687638215,0.382125,82472.0,82471.0,0.004]
[1743687638421,0.254677,82457.0,82456.0,0.0003354]
[1743687638635,0.254677,82457.0,82456.0,0.00047374]
[1743687638636,0.6314326,82457.0,82456.0,0.00047374]
[1743687638839,0.9714326,82457.0,82456.0,0.00047374]
[1743687639041,1.3861326,82457.0,82456.0,0.00047374]
[1743687639242,0.254723,82442.0,82441.0,0.004]
[1743687639474,0.6514786,82442.0,82441.0,0.00413839]
[1743687639932,1.0214786,82442.0,82441.0,0.00413839]
[1743687640126,0.254761,82430.0,82429.0,0.0075812]
[1743687640253,0.6015166,82430.0,82429.0,0.00771964]
[1743687640453,0.3467556,82430.0,82429.0,0.00771964]
[1743687640654,0.3467556,82430.0,82429.0,0.00013844]
[1743687641695,0.3588866,82430.0,82429.0,0.00013844]
[1743687642307,0.3467556,82430.0,82429.0,0.00013844]
[1743687642920,0.23,82430.0,82429.0,0.01226944]
[1743687643603,0.23,82430.0,82429.0,0.00013844]
[1743687644495,0.6015166,82430.0,82429.0,0.00013844]
[1743687646305,1.5749766,82430.0,82429.0,0.00013844]
[1743687646492,0.599766,82428.0,82427.0,4e-05]
[1743687646694,0.9965216,82428.0,82427.0,4e-05]
[1743687646900,0.9915216,82428.0,82427.0,4e-05]
[1743687647109,0.9793906,82428.0,82427.0,4e-05]
[1743687647262,0.3967556,82428.0,82427.0,4e-05]
[1743687647869,0.6393906,82428.0,82427.0,4e-05]
[1743687648277,0.9915216,82428.0,82427.0,4e-05]
[1743687648630,0.9965216,82428.0,82427.0,4e-05]
[1743687648836,1.4312216,82428.0,82427.0,4e-05]
[1743687649371,0.624779,82424.0,82423.0,0.0003356]
[1743687649558,0.005,82412.0,82411.0,0.004]
[1743687649755,0.005,82412.0,82407.0,0.0003354]
[1743687649756,0.03,82408.0,82407.0,4e-07]